bitfinex/quotes_ETHUSD_20230118
["timestamp","ask_amount","ask_price","bid_price","bid_amount"]
[1674071646316,28.67468015,1543.5,1543.2,9.30722901]
[1674071646317,21.5843,1543.5,1543.2,9.30722901]
[1674071646635,0.066,1543.5,1543.3,4.1252181]
[1674071646986,0.67728015,1543.6,1543.4,6.4792]
[1674071647154,0.67728015,1543.6,1543.4,6.5452]
[1674071647312,0.67728015,1543.6,1543.4,14.626862]
[1674071647527,22.89920474,1543.7,1543.4,14.626862]
[1674071647738,16.42101474,1543.7,1543.4,14.626862]
[1674071648681,16.42101474,1543.7,1543.4,14.62421151]
[1674071649148,16.42101474,1543.7,1543.4,14.62221151]
[1674071649320,16.42101474,1543.7,1543.4,13.02174951]
[1674071649531,22.89907474,1543.7,1543.4,6.54254951]
[1674071649747,14.64863245,1543.6,1543.4,0.066]
[1674071649987,17.14001911,1543.6,1543.3,14.30094173]
[1674071650208,23.61848911,1543.6,1543.3,11.30094173]
[1674071650373,7.15611015,1543.5,1543.3,11.30094173]
[1674071650586,2.61861102,1543.4,1543.3,0.066]
[1674071650817,15.25429117,1543.4,1543.1,3.0]
[1674071651152,21.79949117,1543.4,1543.0,13.02759]
[1674071651362,21.79949117,1543.4,1543.0,0.066]
[1674071651571,21.79949117,1543.4,1543.0,9.294288]
[1674071651784,21.79949117,1543.4,1543.0,8.23487583]
[1674071654472,2.17994912,1543.3,1543.0,1.75401583]
[1674071654671,2.17994912,1543.3,1542.9,33.19100351]
[1674071654672,12.96008,1543.2,1542.9,26.09679173]
[1674071654876,13.02608,1543.2,1542.9,31.07675783]
[1674071655152,6.54604,1543.2,1543.0,1.12547514]
[1674071655752,0.066,1543.2,1543.0,7.60634514]
[1674071655945,20.18282015,1543.3,1543.0,6.54687]
[1674071656462,0.67728015,1543.2,1543.0,0.066]
[1674071656671,0.67728015,1543.2,1542.8,0.066]
[1674071656672,1.67728015,1543.2,1542.8,0.066]
[1674071656875,19.60910802,1543.1,1542.7,21.92943177]
[1674071657087,19.67510802,1543.1,1542.8,1.12558817]
[1674071657715,20.97510802,1543.1,1542.8,1.12558817]
[1674071658175,20.97510802,1543.1,1542.7,8.28649999]
[1674071658367,6.4813,1542.9,1542.7,8.28649999]
[1674071658581,12.35319933,1542.9,1542.7,0.06799999]
[1674071658830,12.35319933,1542.9,1542.7,0.00199999]
[1674071662377,18.83449933,1542.9,1542.7,0.00199999]
[1674071662807,18.83449933,1542.9,1542.5,20.2708234]
[1674071663109,18.83449933,1542.9,1542.5,24.1919194]
[1674071663317,18.83449933,1542.9,1542.5,30.6748994]
[1674071663529,20.13449933,1542.9,1542.5,30.6748994]
[1674071663784,20.13449933,1542.9,1542.5,35.6748994]
[1674071663965,20.13449933,1542.9,1542.5,33.98654509]
[1674071664185,20.13449933,1542.9,1542.5,5.21593731]
[1674071664186,24.92724692,1542.9,1542.5,5.21593731]
[1674071664362,19.44642,1542.7,1542.5,5.21593731]
[1674071664572,19.44642,1542.7,1542.5,0.21593731]
[1674071664573,19.51242,1542.7,1542.5,0.21593731]
[1674071664783,19.51242,1542.7,1542.5,0.14993731]
[1674071665049,20.81242,1542.7,1542.5,0.14993731]
[1674071665267,1.0,1542.6,1542.5,0.14993731]
[1674071665427,22.893662,1542.7,1542.5,0.14993731]
[1674071666160,20.81242,1542.7,1542.5,0.14993731]
[1674071672728,7.84814,1542.7,1542.5,0.14993731]
[1674071673133,0.16523959,1542.7,1542.5,13.75263904]
[1674071673346,0.22723959,1542.7,1542.5,13.81863904]
[1674071673566,0.22723959,1542.7,1542.6,7.8644239]
[1674071673736,0.22723959,1542.7,1542.6,7.9304239]
[1674071673945,0.062,1542.7,1542.6,7.9304239]
[1674071674380,0.062,1542.7,1542.6,1.4478639]
[1674071674589,6.54783,1542.8,1542.6,1.3818639]
[1674071676416,6.54783,1542.8,1542.7,1.12618639]
[1674071677360,0.066,1542.8,1542.7,1.12618639]
[1674071677515,19.51047,1542.9,1542.7,1.12618639]
[1674071678473,19.51047,1542.9,1542.7,4.12618639]
[1674071678474,0.066,1542.9,1542.7,4.12618639]
[1674071678684,8.5582,1543.0,1542.8,8.78533864]
[1674071678685,0.066,1543.0,1542.8,8.78533864]
[1674071678896,12.9614,1543.1,1542.8,8.78533864]
[1674071678897,6.54667,1543.1,1542.8,8.85133864]
[1674071679093,6.54403204,1543.1,1542.9,0.88513386]
[1674071680085,13.02460204,1543.1,1542.9,0.88513386]
[1674071680583,19.50517204,1543.1,1542.9,0.88513386]
[1674071680980,19.50517204,1543.1,1542.8,0.47861864]
[1674071680981,19.50517204,1543.1,1542.8,0.41261864]
[1674071683225,19.50517204,1543.1,1542.8,6.89420864]
[1674071683439,19.50517204,1543.1,1542.8,6.96020864]
[1674071685242,19.50517204,1543.1,1542.8,0.47861864]
[1674071685554,19.50517204,1543.1,1542.8,0.41261864]
[1674071688241,19.50517204,1543.1,1542.7,3.066]
[1674071688455,19.50517204,1543.1,1542.6,3.70274173]
[1674071688661,19.50517204,1543.1,1542.6,3.63674173]
[1674071689653,19.50517204,1543.1,1542.6,10.48253]
[1674071689874,19.50517204,1543.1,1542.6,9.54853]
[1674071690180,19.50517204,1543.1,1542.6,15.44537239]
[1674071692038,19.50517204,1543.1,1542.6,16.12445417]
[1674071692298,19.50517204,1543.1,1542.6,15.44537239]
[1674071692971,19.50517204,1543.1,1542.6,16.12445417]
[1674071693395,19.50517204,1543.1,1542.6,15.44537239]
[1674071693654,19.50517204,1543.1,1542.7,1.54453724]
[1674071694439,20.18245219,1543.1,1542.7,1.54453724]
[1674071695548,19.50517204,1543.1,1542.7,1.54453724]
[1674071698501,13.02714,1543.1,1542.7,17.80052483]
[1674071698672,6.54657,1543.1,1542.8,14.08845236]
[1674071698868,0.066,1543.1,1542.9,1.40884524]
[1674071699080,1.366,1543.2,1542.9,24.14439283]
[1674071699323,1.3,1543.2,1543.1,1.957]
[1674071699564,1.3,1543.2,1543.1,8.43746]
[1674071699881,53.41212245,1543.5,1543.1,8.50346]
[1674071700088,29.62119245,1543.5,1543.1,10.66973566]
[1674071700235,29.62119245,1543.5,1543.1,17.15019566]
[1674071700585,0.67728015,1543.4,1543.1,17.15019566]
[1674071701401,0.67728015,1543.4,1543.1,15.25919566]
[1674071701625,20.11489015,1543.4,1543.1,0.132]
[1674071701967,19.50361,1543.4,1543.1,0.066]
[1674071702185,23.9410594,1543.4,1543.1,0.066]
[1674071703834,23.26377925,1543.4,1543.1,0.066]
[1674071704037,19.50361,1543.4,1543.1,0.066]
[1674071708039,20.18089015,1543.4,1543.1,0.066]
[1674071709891,19.50361,1543.4,1543.1,0.066]
[1674071710059,20.18089015,1543.4,1543.1,0.066]
[1674071711725,21.19541245,1543.4,1543.1,0.066]
[1674071711969,2.79682139,1543.3,1543.1,0.066]
[1674071712251,6.48004,1543.2,1543.1,0.066]
[1674071712468,6.54604,1543.2,1543.1,0.066]
[1674071713870,21.68440015,1543.2,1543.1,0.0633057]
[1674071714040,26.69248852,1543.2,1543.1,0.0633057]
[1674071714245,25.69248852,1543.2,1543.1,0.0633057]
[1674071714727,24.19148852,1543.2,1543.1,0.0633057]
[1674071714938,13.02608,1543.2,1543.1,0.0633057]
[1674071715985,19.50612,1543.2,1543.1,0.0633057]
[1674071716346,20.18340015,1543.2,1543.1,0.0633057]
[1674071716766,22.0216423,1543.2,1543.1,0.0633057]
[1674071717670,23.3216423,1543.2,1543.1,0.0633057]
[1674071717819,28.52486184,1543.2,1543.1,0.0633057]
[1674071719435,29.87895367,1543.2,1543.1,0.0633057]
[1674071719650,28.52486184,1543.2,1543.1,0.0633057]
[1674071720555,31.81660943,1543.2,1543.1,0.0633057]
[1674071722270,33.65417896,1543.2,1543.1,0.0633057]
[1674071724249,34.67277086,1543.2,1543.1,0.0633057]
[1674071725232,33.88417896,1543.2,1543.1,0.0633057]
[1674071725440,34.90266339,1543.2,1543.1,0.0633057]
[1674071725650,33.88417896,1543.2,1543.1,0.0633057]
[1674071725865,37.22580721,1543.2,1543.1,0.0003057]
[1674071726437,35.53008713,1543.2,1543.1,0.0003057]
[1674071726963,39.03008713,1543.2,1543.1,0.0003057]
[1674071727171,35.53008713,1543.2,1543.1,0.0003057]
[1674071727436,37.22710938,1543.2,1543.1,0.0003057]
[1674071732271,36.65687815,1543.2,1543.1,0.0003057]
[1674071732496,36.31763915,1543.2,1543.1,0.0003057]
[1674071733535,33.31763915,1543.2,1543.1,0.0003057]
[1674071735219,31.81663915,1543.2,1543.1,0.0003057]
[1674071735578,33.17343017,1543.2,1543.1,0.0003057]
[1674071735958,34.67443017,1543.2,1543.1,0.0003057]
[1674071736477,34.67426384,1543.2,1543.1,0.0003057]
[1674071736644,36.88687815,1543.2,1543.1,0.0003057]
[1674071737466,37.90411243,1543.2,1543.1,0.0003057]
[1674071737935,36.40611243,1543.2,1543.1,0.0003057]
[1674071738153,34.67511243,1543.2,1543.1,0.0003057]
[1674071738320,33.31832141,1543.2,1543.1,0.0003057]
[1674071739153,33.99639561,1543.2,1543.1,0.0003057]
[1674071739838,32.97916133,1543.2,1543.1,0.0003057]
[1674071740048,14.32608,1543.2,1543.1,0.9883057]
[1674071740420,1.366,1543.2,1543.1,2.4893057]
[1674071740626,1.3,1543.2,1543.1,4.03436927]
[1674071742206,0.62474319,1543.2,1543.1,4.03436927]
[1674071747348,7.10478319,1543.2,1543.1,3.04636927]
[1674071747562,7.10478319,1543.2,1543.1,0.0003057]
[1674071747563,13.65082319,1543.2,1543.1,0.0003057]
[1674071749867,20.13086319,1543.2,1543.1,0.0003057]
[1674071751138,13.65082319,1543.2,1543.1,0.0003057]
[1674071751361,7.17078319,1543.2,1543.1,0.0003057]
[1674071751608,7.17078319,1543.2,1543.1,1.13843627]
[1674071752502,0.69074319,1543.2,1543.1,2.63943627]
[1674071752821,0.62474319,1543.2,1543.1,2.63943627]
[1674071753761,0.62474319,1543.2,1543.1,9.11989627]
[1674071753967,0.62474319,1543.2,1543.1,9.18589627]
[1674071755020,0.62474319,1543.2,1543.1,2.70543627]
[1674071755349,0.62474319,1543.2,1543.1,2.63943627]
[1674071756856,0.62474319,1543.2,1543.1,2.63913057]
[1674071757172,0.066,1543.3,1543.1,27.50999989]
[1674071757323,1.3,1543.5,1543.2,9.54866065]
[1674071757535,1.3,1543.5,1543.4,1.487]
[1674071757806,1.3,1543.5,1543.4,24.69422235]
[1674071758043,1.3,1543.5,1543.4,24.76022235]
[1674071758381,1.3,1543.5,1543.4,27.76022235]
[1674071758602,1.3,1543.5,1543.4,28.39696408]
[1674071760005,1.3,1543.5,1543.4,12.14681649]
[1674071760262,1.3,1543.5,1543.4,5.66761649]
[1674071760382,1.3,1543.5,1543.4,2.03087476]
[1674071760587,1.3,1543.5,1543.4,1.96487476]
[1674071760797,1.3,1543.5,1543.4,1.487]
[1674071764956,1.3,1543.5,1543.4,7.9662]
[1674071765123,1.3,1543.5,1543.4,20.9906]
[1674071766577,1.3,1543.5,1543.4,23.9906]
[1674071766786,1.3,1543.5,1543.4,27.0376]
[1674071768890,1.3,1543.5,1543.4,1.553]
[1674071769099,1.3,1543.5,1543.4,1.487]
[1674071772187,1.3,1543.5,1543.3,19.50434]
[1674071772508,1.3,1543.5,1543.3,21.00534]
[1674071772837,1.3,1543.5,1543.3,13.02484]
[1674071773212,1.3,1543.5,1543.3,8.74148978]
[1674071777580,1.3,1543.5,1543.3,15.22110978]
[1674071780477,20.73672,1543.5,1543.3,0.066]
[1674071780682,20.80272,1543.5,1543.2,0.054703]
[1674071781145,21.4807942,1543.5,1543.2,0.054703]
[1674071785564,22.49802848,1543.5,1543.2,0.054703]
[1674071785937,25.53135843,1543.5,1543.2,0.054703]
[1674071786391,1.0,1543.3,1543.2,0.054703]
[1674071786833,12.95924,1543.3,1543.2,0.054703]
[1674071786997,13.02524,1543.3,1543.2,0.054703]
[1674071789248,6.54562,1543.3,1543.2,0.054703]
[1674071789426,13.02524,1543.3,1543.2,0.054703]
[1674071791213,21.65314142,1543.3,1543.2,0.054703]
[1674071791843,21.65314142,1543.3,1543.2,0.05135763]
[1674071794978,22.33121562,1543.3,1543.2,0.05135763]
[1674071795450,21.65314142,1543.3,1543.2,0.05135763]
[1674071795680,22.33121562,1543.3,1543.2,0.05135763]
[1674071796658,29.03691431,1543.3,1543.2,0.05135763]
[1674071796873,36.65768003,1543.3,1543.2,0.05135763]
[1674071797334,41.35470228,1543.3,1543.2,0.05135763]
[1674071797614,42.65470228,1543.3,1543.2,0.05135763]
[1674071797934,40.95768003,1543.3,1543.2,0.05135763]
[1674071801792,41.97521963,1543.3,1543.2,0.05135763]
[1674071802534,40.61842861,1543.3,1543.2,0.05135763]
[1674071802798,41.97495117,1543.3,1543.2,0.05135763]
[1674071803031,41.97496173,1543.3,1543.2,0.05135763]
[1674071803747,40.95768003,1543.3,1543.2,0.05135763]
[1674071804488,40.61811939,1543.3,1543.2,0.05135763]
[1674071805406,41.97491041,1543.3,1543.2,0.05135763]
[1674071806322,42.65470228,1543.3,1543.2,0.05135763]
[1674071806758,40.95768003,1543.3,1543.2,0.05135763]
[1674071807322,42.65470228,1543.3,1543.2,0.05135763]
[1674071808430,40.95768003,1543.3,1543.2,0.05135763]
[1674071810457,42.65470228,1543.3,1543.2,0.05135763]
[1674071810666,40.95768003,1543.3,1543.2,0.05135763]
[1674071811499,38.89968171,1543.3,1543.2,0.05135763]
[1674071811712,36.5775988,1543.3,1543.2,0.05135763]
[1674071812120,35.5608061,1543.3,1543.2,0.05135763]
[1674071812317,36.5775988,1543.3,1543.2,0.05135763]
[1674071812524,36.5775988,1543.3,1543.2,0.04872568]
[1674071812525,35.89968171,1543.3,1543.2,0.04872568]
[1674071812778,36.57760068,1543.3,1543.2,0.04872568]
[1674071813185,36.80760068,1543.3,1543.2,0.04872568]
[1674071814415,32.49906039,1543.3,1543.2,0.04872568]
[1674071814628,29.44286,1543.3,1543.2,0.04872568]
[1674071815268,29.44286,1543.3,1543.2,1.03672568]
[1674071815486,20.80486,1543.3,1543.2,1.03672568]
[1674071815926,14.32524,1543.3,1543.2,0.04872568]
[1674071817460,20.80486,1543.3,1543.2,0.04872568]
[1674071818826,21.48277897,1543.3,1543.2,0.04872568]
[1674071822632,27.10160999,1543.3,1543.2,0.04872568]
[1674071822871,25.74481897,1543.3,1543.2,0.04872568]
[1674071823469,29.03656656,1543.3,1543.2,0.04872568]
[1674071823663,30.62335758,1543.3,1543.2,0.04872568]
[1674071824990,32.11135758,1543.3,1543.2,0.04872568]
[1674071825499,27.46281897,1543.3,1543.2,0.04872568]
[1674071825750,27.10262119,1543.3,1543.2,0.04872568]
[1674071827699,27.10270282,1543.3,1543.2,0.04872568]
[1674071827882,26.08591012,1543.3,1543.2,0.04872568]
[1674071830552,26.42369993,1543.3,1543.2,0.04872568]
[1674071831880,26.08605301,1543.3,1543.2,0.04872568]
[1674071832095,22.16288674,1543.3,1543.2,0.04872568]
[1674071833760,23.17967944,1543.3,1543.2,0.04872568]
[1674071834915,22.50053366,1543.3,1543.2,0.04872568]
[1674071835126,22.84053198,1543.3,1543.2,0.04872568]
[1674071835348,29.33030182,1543.3,1543.2,0.04872568]
[1674071835587,32.67407098,1543.3,1543.2,0.04872568]
[1674071836967,32.67407098,1543.3,1543.2,0.04550847]
[1674071837133,35.67549635,1543.3,1543.2,0.04550847]
[1674071839288,33.97704873,1543.3,1543.2,0.00050847]
[1674071839494,45.99153282,1543.3,1542.8,0.066]
[1674071839714,45.99153282,1543.3,1542.6,0.13875821]
[1674071839715,20.1232065,1542.9,1542.6,0.13875821]
[1674071839864,20.1892065,1542.9,1542.6,0.13875821]
[1674071840445,21.4892065,1542.9,1542.6,0.13875821]
[1674071840840,20.8099,1542.9,1542.6,0.13875821]
[1674071841452,21.4892065,1542.9,1542.6,0.13875821]
[1674071841659,20.8099,1542.9,1542.6,0.13875821]
[1674071842126,25.25363112,1542.9,1542.6,0.13875821]
[1674071842443,24.57432462,1542.9,1542.6,0.13875821]
[1674071843600,25.25363112,1542.9,1542.6,0.13875821]
[1674071843828,24.57432462,1542.9,1542.6,0.13875821]
[1674071847262,1.0,1542.8,1542.6,0.13875821]
[1674071847472,19.44642,1542.7,1542.6,0.13875821]
[1674071847758,19.51242,1542.7,1542.6,0.13875821]
[1674071847968,20.81242,1542.7,1542.6,0.08875821]
[1674071852197,24.10416759,1542.7,1542.6,0.08875821]
[1674071852406,30.94847225,1542.7,1542.6,0.08875821]
[1674071853027,34.62777875,1542.7,1542.6,0.08875821]
[1674071853284,33.94847225,1542.7,1542.6,0.08875821]
[1674071858073,32.44747225,1542.7,1542.6,0.08875821]
[1674071861699,33.94847225,1542.7,1542.6,0.08875821]
[1674071864899,34.62777875,1542.7,1542.6,0.08875821]
[1674071866371,1.0,1542.6,1542.5,0.14993731]
[1674071866585,1.0,1542.5,1542.4,0.13875821]
[1674071866802,28.40815773,1542.5,1542.4,0.13875821]
[1674071867165,31.70415773,1542.5,1542.4,0.13875821]
[1674071867377,43.65223926,1542.5,1542.4,0.13875821]
[1674071867560,44.95223926,1542.5,1542.4,0.13875821]
[1674071867774,44.27458912,1542.5,1542.4,0.13875821]
[1674071868367,44.27458912,1542.5,1542.4,8.21e-06]
[1674071868726,1.0,1542.4,1542.3,0.13995576]
[1674071869048,31.84673116,1542.4,1542.3,0.13995576]
[1674071869267,31.91273116,1542.4,1542.3,0.13995576]
[1674071869630,33.21273116,1542.4,1542.3,0.13995576]
[1674071870263,32.21273116,1542.4,1542.3,0.13995576]
[1674071870472,30.72073116,1542.4,1542.3,0.13995576]
[1674071874150,24.19898357,1542.4,1542.3,0.13995576]
[1674071874396,20.8162,1542.4,1542.3,0.13995576]
[1674071875422,20.14059647,1542.4,1542.3,0.13995576]
[1674071882006,20.14059647,1542.4,1542.3,1.64095576]
[1674071882007,1.364,1542.4,1542.3,1.64095576]
[1674071882172,0.16500588,1542.4,1542.3,8.12477576]
[1674071882382,0.16500588,1542.4,1542.3,3.83683691]
[1674071882612,0.16500588,1542.4,1542.3,3.77083691]
[1674071882827,0.16500588,1542.4,1542.3,17.86436953]
[1674071883155,0.16500588,1542.4,1542.3,29.10300214]
[1674071883379,0.16500588,1542.4,1542.3,22.61918214]
[1674071883523,0.16500588,1542.4,1542.3,16.13536214]
[1674071883986,0.16500588,1542.4,1542.3,7.96272953]
[1674071884198,0.16500588,1542.4,1542.3,3.83683691]
[1674071884412,13.13180588,1542.4,1542.3,2.26983691]
[1674071884622,13.19780588,1542.4,1542.3,0.13995576]
[1674071885536,19.68120588,1542.4,1542.3,0.13995576]
[1674071885938,13.19780588,1542.4,1542.3,0.13995576]
[1674071886177,6.71440588,1542.4,1542.3,0.13995576]
[1674071886943,0.23100588,1542.4,1542.3,1.28730691]
[1674071887109,0.23100588,1542.4,1542.3,3.89922217]
[1674071887110,0.16500588,1542.4,1542.3,3.89922217]
[1674071887331,0.16500588,1542.4,1542.3,10.38304217]
[1674071887649,0.16500588,1542.4,1542.3,21.62180383]
[1674071888501,0.16500588,1542.4,1542.3,22.30088561]
[1674071890054,0.16500588,1542.4,1542.3,21.62180383]
[1674071890536,0.16500588,1542.4,1542.3,29.59962383]
[1674071890851,0.16500588,1542.4,1542.3,30.27870561]
[1674071892011,0.16500588,1542.4,1542.3,31.93407001]
[1674071892321,0.066,1542.9,1542.5,19.44831]
[1674071892492,6.54716,1543.0,1542.8,1.501]
[1674071892681,6.54716,1543.0,1542.7,8.04914]
[1674071892892,1.3,1542.9,1542.7,14.53128]
[1674071893104,1.3,1542.9,1542.8,1.453128]
[1674071893312,6.54716,1543.0,1542.8,1.453128]
[1674071893521,1.3,1542.9,1542.8,1.453128]
[1674071893998,1.3,1542.9,1542.7,1.501]
[1674071894148,1.3,1542.9,1542.7,7.9831]
[1674071894358,1.3,1542.9,1542.7,8.0491]
[1674071894573,1.3,1542.9,1542.7,14.53124]
[1674071894778,1.3,1542.9,1542.8,1.453124]
[1674071895061,1.3,1542.9,1542.8,7.934844]
[1674071895259,1.3,1542.9,1542.8,1.519124]
[1674071895588,1.3,1542.9,1542.8,1.453124]
[1674071895982,1.3,1542.9,1542.8,7.934844]
[1674071896340,1.3,1542.9,1542.8,1.519124]
[1674071896462,7.7813,1542.9,1542.8,1.453124]
[1674071896672,14.3286,1542.9,1542.6,22.65007273]
[1674071897095,7.8473,1542.9,1542.6,22.65007273]
[1674071897566,7.8473,1542.9,1542.6,21.24728273]
[1674071897721,7.8473,1542.9,1542.6,20.610541]
[1674071899030,7.8473,1542.9,1542.4,0.25950293]
[1674071899353,7.8473,1542.9,1542.6,0.014]
[1674071899354,12.96428,1542.7,1542.6,0.014]
[1674071899560,12.96428,1542.7,1542.6,0.002]
[1674071899561,19.51042,1542.7,1542.6,0.002]
[1674071899782,21.86040177,1542.7,1542.4,0.25950293]
[1674071905402,1.0,1542.6,1542.4,0.25950293]
[1674071905613,12.96596,1542.5,1542.4,0.25950293]
[1674071905946,13.03196,1542.5,1542.4,0.25950293]
[1674071906161,21.566409,1542.5,1542.4,0.25950293]
[1674071910666,24.85815659,1542.5,1542.4,0.25950293]
[1674071911303,33.60465659,1542.5,1542.4,0.25950293]
[1674071912447,34.28230673,1542.5,1542.4,0.25950293]
[1674071912679,33.60465659,1542.5,1542.4,0.25950293]
[1674071913505,30.312909,1542.5,1542.4,0.25950293]
[1674071915465,28.26144,1542.5,1542.4,0.25950293]
[1674071916059,19.51494,1542.5,1542.4,0.25950293]
[1674071916777,13.03196,1542.5,1542.4,0.25950293]
[1674071916985,19.51494,1542.5,1542.4,0.25950293]
[1674071922245,19.51494,1542.5,1542.4,0.25667309]
[1674071922877,22.993737,1542.5,1542.4,0.25667309]
[1674071924163,16.510757,1542.5,1542.4,0.25667309]
[1674071924399,13.03196,1542.5,1542.4,0.25667309]
[1674071926714,5.87341688,1542.5,1542.4,0.25667309]
[1674071926932,6.48203,1542.8,1542.5,1.13493936]
[1674071927139,6.48203,1542.8,1542.6,1.61449394]
[1674071927140,6.54803,1542.8,1542.6,1.61449394]
[1674071930404,13.02989,1542.8,1542.5,3.33868109]
[1674071930557,13.02989,1542.8,1542.5,3.27268109]
[1674071931017,19.51175,1542.8,1542.5,3.27268109]
[1674071932605,19.51175,1542.8,1542.5,1.77168109]
[1674071933547,0.066,1542.8,1542.5,24.51224868]
[1674071933704,0.066,1542.9,1542.7,7.98314]
[1674071933910,6.54703,1543.0,1542.7,8.04914]
[1674071934174,13.02806,1543.0,1542.7,8.04914]
[1674071934391,6.54703,1543.0,1542.7,14.53128]
[1674071934548,6.54703,1543.0,1542.8,1.453128]
[1674071934763,13.02804,1543.0,1542.8,1.453128]
[1674071935264,20.18670014,1543.0,1542.8,1.453128]
[1674071935544,19.50905,1543.0,1542.7,1.501]
[1674071938678,19.50905,1543.0,1542.7,7.98312]
[1674071938895,19.50905,1543.0,1542.7,11.34018749]
[1674071939082,19.50905,1543.0,1542.7,4.85806749]
[1674071939291,19.50905,1543.0,1542.7,4.79206749]
[1674071939908,20.18670014,1543.0,1542.6,9.5118]
[1674071941379,1.01895974,1542.7,1542.6,0.066]
[1674071941608,1.01895974,1542.7,1542.5,9.75541109]
[1674071941609,2.783904,1542.7,1542.5,1.20093936]
[1674071941856,20.12617384,1542.6,1542.5,1.13493936]
[1674071942008,20.19217384,1542.6,1542.5,1.13493936]
[1674071942428,0.066,1542.6,1542.5,1.13493936]
[1674071942656,8.1785246,1542.7,1542.5,1.2741006]
[1674071942657,13.70913384,1542.7,1542.5,1.2741006]
[1674071943911,20.19148384,1542.7,1542.5,1.13493936]
[1674071944109,21.2092246,1542.7,1542.5,1.13493936]
[1674071944747,20.12617384,1542.6,1542.5,1.13493936]
[1674071944959,20.19217384,1542.6,1542.5,1.13493936]
[1674071945193,1.0,1542.5,1542.3,0.13995576]
[1674071945425,6.4834,1542.4,1542.3,0.13995576]
[1674071945637,6.5494,1542.4,1542.3,0.13995576]
[1674071947300,6.5494,1542.4,1542.3,1.12795576]
[1674071947515,0.066,1542.4,1542.3,2.75574691]
[1674071947682,0.066,1542.5,1542.3,2.75574691]
[1674071947890,13.03164,1542.6,1542.4,1.49]
[1674071948099,13.03164,1542.6,1542.4,1.76557469]
[1674071949156,0.00378427,1542.4,1542.3,0.13995576]
[1674071949370,6.48718427,1542.4,1542.3,0.13995576]
[1674071949634,13.03658427,1542.4,1542.3,0.13995576]
[1674071950037,13.03658427,1542.4,1542.3,0.08995576]
[1674071954641,19.51998427,1542.4,1542.3,0.08995576]
[1674071955602,6.55318427,1542.4,1542.3,0.08995576]
[1674071956024,6.55318427,1542.4,1542.3,0.26164691]
[1674071956245,13.03658427,1542.4,1542.3,0.08995576]
[1674071960989,21.21621887,1542.4,1542.3,0.08995576]
[1674071961304,20.19847811,1542.4,1542.3,0.08995576]
[1674071962295,21.21621887,1542.4,1542.3,0.08995576]
[1674071962504,23.97847945,1542.4,1542.3,0.08995576]
[1674071962764,23.30036746,1542.4,1542.3,0.08995576]
[1674071962977,24.99622197,1542.4,1542.3,0.08995576]
[1674071963349,25.67613558,1542.4,1542.3,0.08995576]
[1674071963555,24.65898045,1542.4,1542.3,0.08995576]
[1674071963767,25.67614493,1542.4,1542.3,0.08995576]
[1674071963993,24.65898045,1542.4,1542.3,0.08995576]
[1674071964329,1.0,1542.3,1542.2,0.13995576]
[1674071964541,30.08229634,1542.3,1542.2,0.13995576]
[1674071964786,30.14829634,1542.3,1542.2,0.13995576]
[1674071965335,1.0,1542.2,1542.0,0.14993731]
[1674071965478,1.0,1542.2,1541.8,0.13875797]
[1674071965479,1.0,1542.0,1541.8,0.13875797]
[1674071965684,3.52174759,1541.9,1541.8,0.13875797]
[1674071965956,32.46374759,1541.9,1541.8,0.13875797]
[1674071966129,29.52974759,1541.9,1541.8,0.13875797]
[1674071966315,32.73192235,1541.9,1541.8,0.13875797]
[1674071969740,29.21017476,1541.9,1541.8,0.13875797]
[1674071971568,26.008,1541.9,1541.8,0.13875797]
[1674071976915,29.29974759,1541.9,1541.8,0.13875797]
[1674071977103,29.52974759,1541.9,1541.8,0.13875797]
[1674071977965,26.008,1541.9,1541.8,0.13875797]
[1674071981646,30.79174759,1541.9,1541.8,0.13875797]
[1674071981963,35.72915235,1541.9,1541.8,0.13875797]
[1674071982773,35.72915235,1541.9,1541.6,0.16473455]
[1674071982774,0.138,1541.8,1541.6,0.16473455]
[1674071982988,4.79274759,1541.7,1541.6,0.16473455]
[1674071983195,31.73810759,1541.7,1541.6,0.16473455]
[1674071983415,35.39171835,1541.7,1541.6,0.16473455]
[1674071984552,31.09997076,1541.7,1541.6,0.16473455]
[1674071984764,29.59897076,1541.7,1541.6,0.16473455]
[1674071986266,19.52502,1541.7,1541.6,1.16773455]
[1674071989999,0.066,1541.7,1541.6,1.16773455]
[1674071990383,16.4035,1541.8,1541.6,0.16473455]
[1674071990384,6.5521,1541.8,1541.6,0.16473455]
[1674071990699,6.5521,1541.8,1541.6,1.63224668]
[1674071991626,0.066,1541.8,1541.6,12.61997668]
[1674071991819,13.0367,1542.0,1541.6,18.53599495]
[1674071992033,13.0367,1542.0,1541.7,1.85359949]
[1674071992575,19.52216,1542.0,1541.7,1.85359949]
[1674071993987,19.52216,1542.0,1541.6,4.69824668]
[1674071994197,19.52216,1542.0,1541.6,4.63224668]
[1674071996041,19.52216,1542.0,1541.6,3.99550495]
[1674071997940,19.52216,1542.0,1541.6,16.96894495]
[1674071998094,13.0367,1542.0,1541.7,8.1831445]
[1674071998303,13.0367,1542.0,1541.7,8.2491445]
[1674071998547,6.55129,1542.0,1541.7,8.2491445]
[1674071999195,13.03657,1542.0,1541.7,8.2491445]
[1674071999532,0.06032634,1542.0,1541.8,25.07540204]
[1674071999731,6.54476634,1542.2,1541.8,18.65548204]
[1674072000056,7.22245246,1542.2,1541.9,7.98639]
[1674072000195,0.73801246,1542.2,1542.0,0.798639]
[1674072000413,0.67768612,1542.2,1542.0,0.798639]
[1674072000996,8.16192612,1542.2,1542.0,0.798639]
[1674072001300,7.22225246,1542.2,1542.0,0.798639]
[1674072002198,14.72314562,1542.2,1542.0,0.798639]
[1674072002519,1.0,1542.1,1541.8,17.79102377]
[1674072002849,8.16239612,1542.1,1541.8,17.79102377]
[1674072003043,8.22272246,1542.1,1541.8,17.79102377]
[1674072003252,6.54503634,1542.1,1541.9,1.77910238]
[1674072003616,0.06032634,1542.1,1541.9,14.75010238]
[1674072003773,7.22225246,1542.2,1541.9,14.81610238]
[1674072003985,7.22225246,1542.2,1542.0,1.48161024]
[1674072004262,13.70666246,1542.2,1541.9,8.33060238]
[1674072004442,13.70666246,1542.2,1541.9,1.84510238]
[1674072004644,0.67768612,1542.1,1541.8,10.66834204]
[1674072004863,0.67768612,1542.1,1541.8,6.55168]
[1674072005048,6.4855,1541.9,1541.8,0.066]
[1674072005247,6.54582634,1541.9,1541.7,0.066]
[1674072005466,13.03132634,1541.9,1541.6,3.16473455]
[1674072005673,13.03132634,1541.9,1541.6,4.94417895]
[1674072005877,13.03132634,1541.9,1541.6,1.94417895]